[Event "69th RUS-ch Women Superfinal 2019"]
[Site "Izhevsk"]
[Date "2019.08.21"]
[Round "10.2"]
[White "Girya, Olga"]
[Black "Bodnaruk, Anastasia"]
[Result "1/2-1/2"]
[ECO "E81"]
[WhiteElo "2457"]
[BlackElo "2440"]
[Annotator "ChessBase"]
[PlyCount "90"]
[EventDate "2019.08.10"]
[EventType "tourn"]
[EventCountry "RUS"]
[SourceTitle "playchess.com"]
[Source "ChessBase"]
[SourceQuality "1"]
[TimeControl "40/5400+30:1800+30"]

1. d4 {[%emt 0:00:00]} Nf6 {[%emt 0:00:00]} 2. c4 {[%emt 0:00:00]} g6 {[%emt 0:00:00]} 3. Nc3 {[%emt 0:00:00]} Bg7 {[%emt 0:00:00]} 4. e4 {[%emt 0:00:00]} d6 {[%emt 0:00:00]} 5. f3 {[%emt 0:00:12]} O-O {[%emt 0:00:05]} 6. Be3 {[%emt 0:00:14]} c5 {[%emt 0:00:59]} 7. Nge2 {[%emt 0:00:21]} Nc6 {[%emt 0:00:26]} 8. d5 {[%emt 0:00:12]} Na5 {[%emt 0:01:50]} 9. b3 {[%emt 0:00:47]} a6 {[%emt 0:02:14]} 10. Rc1 {[%emt 0:00:36]} Rb8 {[%emt 0:12:33]} 11. Ng3 {[%emt 0:00:34]} e6 {[%emt 0:01:32]} 12. dxe6 {[%emt 0:08:33]} Bxe6 {[%emt 0:00:09]} 13. Be2 {[%emt 0:06:12]} Nc6 {[%emt 0:01:29]} 14. O-O {[%emt 0:01:19]} h5 {[%emt 0:05:12]} 15. Bg5 {[%emt 0:09:32]} Qa5 {[%emt 0:08:02]} 16. Bd2 {[%emt 0:12:52]} Qd8 {[%emt 0:02:39]} 17. Bg5 {[%emt 0:00:31]} Qa5 {[%emt 0:04:50]} 18. Bd2 {[%emt 0:03:03]} Qd8 {[%emt 0:00:35]} 19. Re1 {[%emt 0:09:46]} h4 {[%emt 0:12:47]} 20. Nf1 {[%emt 0:00:06]} Nh5 {[%emt 0:00:33]} 21. Be3 {[%emt 0:07:52]} Bd4 {[%emt 0:12:02]} 22. Qd2 {[%emt 0:01:28]} Qf6 {[%emt 0:01:19]} 23. Kh1 {[%emt 0:03:33]} Be5 {[%emt 0:07:49]} 24. Bg5 {[%emt 0:06:42]} Qh8 {[%emt 0:00:41]} 25. h3 {[%emt 0:01:09]} f6 {[%emt 0:08:11]} 26. Be3 {[%emt 0:00:17]} g5 {[%emt 0:00:10]} 27. Nd5 {[%emt 0:02:24]} Qh6 {[%emt 0:04:47]} 28. Nh2 {[%emt 0:11:32]} Nd4 {[%emt 0:04:24]} 29. Kg1 {[%emt 0:02:17]} Nf4 {[%emt 0:05:33]} 30. Bd1 {[%emt 0:03:03]} b5 {[%emt 0:02:12]} 31. Ng4 {[%emt 0:01:37]} Bxg4 {[%emt 0:00:15]} 32. fxg4 {[%emt 0:00:06]} Nfe6 {[%emt 0:01:48]} 33. Rf1 {[%emt 0:01:59]} b4 {[%emt 0:00:41]} 34. Bc2 {[%emt 0:03:37]} Rb7 {[%emt 0:00:19]} 35. Rf2 {[%emt 0:00:49]} Kh8 {[%emt 0:00:41]} 36. Rcf1 {[%emt 0:01:26]} Kg8 {[%emt 0:00:26]} 37. Kh1 {[%emt 0:00:46]} Rbf7 {[%emt 0:00:32]} 38. Rd1 {[%emt 0:00:40]} Rb8 {[%emt 0:00:26]} 39. Rdf1 {[%emt 0:01:02]} Rbb7 {[%emt 0:00:36]} 40. Bd1 {[%emt 0:00:00]} Qf8 {[%emt 0:00:00]} 41. Qc1 {[%emt 0:06:16]} a5 {[%emt 0:04:46]} 42. Qd2 {[%emt 0:04:45]} Qd8 {[%emt 0:01:35]} 43. Qc1 {[%emt 0:00:29]} Qf8 {[%emt 0:00:10]} 44. Qd2 {[%emt 0:00:06]} Qd8 {[%emt 0:00:01]} 45. Qc1 {[%emt 0:00:06]} Qf8 {[%emt 0:00:04]} 1/2-1/2

[Event "69th RUS-ch Women Superfinal 2019"]
[Site "Izhevsk"]
[Date "2019.08.21"]
[Round "10.3"]
[White "Charochkina, Daria"]
[Black "Goryachkina, Aleksandra"]
[Result "1/2-1/2"]
[ECO "A01"]
[WhiteElo "2338"]
[BlackElo "2564"]
[Annotator "ChessBase"]
[PlyCount "153"]
[EventDate "2019.08.10"]
[EventType "tourn"]
[EventCountry "RUS"]
[SourceTitle "playchess.com"]
[Source "ChessBase"]
[SourceQuality "1"]
[TimeControl "40/5400+30:1800+30"]

1. b3 {[%emt 0:00:00]} d5 {[%emt 0:00:00]} 2. Bb2 {[%emt 0:00:00]} c6 {[%emt 0:00:00]} 3. Nf3 {[%emt 0:01:35]} Bf5 {[%emt 0:03:33]} 4. g3 {[%emt 0:00:39]} e6 {[%emt 0:00:28]} 5. Bg2 {[%emt 0:00:30]} Nf6 {[%emt 0:01:06]} 6. O-O {[%emt 0:00:29]} h6 {[%emt 0:01:53]} 7. d3 {[%emt 0:00:35]} Be7 {[%emt 0:00:47]} 8. Nbd2 {[%emt 0:00:43]} O-O {[%emt 0:00:34]} 9. e3 {[%emt 0:00:16]} a5 {[%emt 0:07:19]} 10. a4 {[%emt 0:01:37]} Bh7 {[%emt 0:01:23]} 11. Qe2 {[%emt 0:02:44]} Na6 {[%emt 0:00:46]} 12. Ne5 {[%emt 0:08:53]} Nb4 {[%emt 0:02:19]} 13. Rac1 {[%emt 0:02:17]} Rc8 {[%emt 0:07:38]} 14. f4 {[%emt 0:13:55]} Ne8 {[%emt 0:01:48]} 15. Bh3 {[%emt 0:07:42]} Nd6 {[%emt 0:03:04]} 16. Kh1 {[%emt 0:02:19]} b5 {[%emt 0:04:55]} 17. g4 {[%emt 0:02:12]} bxa4 {[%emt 0:03:09]} 18. bxa4 {[%emt 0:00:13]} c5 {[%emt 0:01:40]} 19. g5 {[%emt 0:03:49]} hxg5 {[%emt 0:04:17]} 20. fxg5 {[%emt 0:00:46]} Bxg5 {[%emt 0:01:58]} 21. Qh5 {[%emt 0:21:40]} d4 {[%emt 0:17:54]} 22. Bxe6 {[%emt 0:09:50]} fxe6 {[%emt 0:08:19]} 23. Rxf8+ {[%emt 0:00:11]} Qxf8 {[%emt 0:00:14]} 24. Qxg5 {[%emt 0:00:14]} Nf7 {[%emt 0:03:14]} 25. Qg3 {[%emt 0:03:12]} Nxe5 {[%emt 0:02:34]} 26. Qxe5 {[%emt 0:00:05]} Qf6 {[%emt 0:01:34]} 27. exd4 {[%emt 0:03:43]} cxd4 {[%emt 0:01:30]} 28. Qxa5 {[%emt 0:01:06]} Nd5 {[%emt 0:05:54]} 29. Rf1 {[%emt 0:00:15]} Bf5 {[%emt 0:01:14]} 30. Qa7 {[%emt 0:01:44]} Nc3 {[%emt 0:02:33]} 31. Bxc3 {[%emt 0:06:52]} dxc3 {[%emt 0:01:15]} 32. Nf3 {[%emt 0:00:22]} Bg4 {[%emt 0:05:04]} 33. Qe3 {[%emt 0:00:42]} Rf8 {[%emt 0:01:27]} 34. Kg2 {[%emt 0:00:06]} Qf5 {[%emt 0:02:24]} 35. Kg3 {[%emt 0:01:58]} Bh5 {[%emt 0:01:44]} 36. Qe4 {[%emt 0:00:52]} Qf6 {[%emt 0:00:37]} 37. h4 {[%emt 0:01:00]} Bg6 {[%emt 0:00:30]} 38. Qe3 {[%emt 0:00:14]} Qf7 {[%emt 0:01:02]} 39. Rf2 {[%emt 0:00:52]} Bf5 {[%emt 0:00:54]} 40. Ne5 {[%emt 0:00:00]} Qc7 {[%emt 0:00:00]} 41. Rf4 {[%emt 0:11:56]} Qb7 {[%emt 0:04:06]} 42. Kh2 {[%emt 0:02:37]} Qb1 {[%emt 0:02:58]} 43. Rf2 {[%emt 0:00:29]} Ra8 {[%emt 0:04:12]} 44. Rg2 {[%emt 0:03:03]} Qb7 {[%emt 0:06:00]} 45. Qd4 {[%emt 0:03:18]} Qc7 {[%emt 0:00:48]} 46. Rg3 {[%emt 0:06:26]} Rd8 {[%emt 0:02:03]} 47. Qe3 {[%emt 0:01:01]} Rd5 {[%emt 0:00:47]} 48. Nc4 {[%emt 0:00:12]} Kh7 {[%emt 0:02:59]} 49. a5 {[%emt 0:04:46]} Rb5 {[%emt 0:03:08]} 50. Kg2 {[%emt 0:00:30]} Rb2 {[%emt 0:00:38]} 51. Qe2 {[%emt 0:00:46]} Qf4 {[%emt 0:02:27]} 52. Ne3 {[%emt 0:01:11]} Ra2 {[%emt 0:02:53]} 53. Nxf5 {[%emt 0:00:58]} exf5 {[%emt 0:01:39]} 54. Qh5+ {[%emt 0:00:40]} Qh6 {[%emt 0:00:32]} 55. Qxf5+ {[%emt 0:00:03]} Kh8 {[%emt 0:00:09]} 56. Qc8+ {[%emt 0:01:07]} Kh7 {[%emt 0:00:01]} 57. Qxc3 {[%emt 0:00:28]} Ra4 {[%emt 0:01:14]} 58. d4 {[%emt 0:00:44]} Qd6 {[%emt 0:01:17]} 59. Qd3+ {[%emt 0:00:30]} Kh8 {[%emt 0:00:02]} 60. Re3 {[%emt 0:01:14]} g6 {[%emt 0:01:27]} 61. Qe4 {[%emt 0:00:32]} Kh7 {[%emt 0:01:46]} 62. h5 {[%emt 0:00:37]} Rxd4 {[%emt 0:00:20]} 63. hxg6+ {[%emt 0:01:09]} Qxg6+ {[%emt 0:00:02]} 64. Qxg6+ {[%emt 0:00:03]} Kxg6 {[%emt 0:00:07]} 65. Ra3 {[%emt 0:00:46]} Rd7 {[%emt 0:00:49]} 66. a6 {[%emt 0:00:07]} Ra7 {[%emt 0:00:00]} 67. Kf3 {[%emt 0:00:58]} Kf5 {[%emt 0:00:02]} 68. Ra5+ {[%emt 0:00:08]} Ke6 {[%emt 0:00:01]} 69. Ke4 {[%emt 0:00:35]} Kd6 {[%emt 0:00:01]} 70. Kd4 {[%emt 0:00:20]} Kc6 {[%emt 0:00:01]} 71. Kc4 {[%emt 0:00:53]} Kb6 {[%emt 0:00:14]} 72. Kb4 {[%emt 0:00:03]} Kc7 {[%emt 0:01:40]} 73. Kb5 {[%emt 0:00:39]} Kb8 {[%emt 0:00:01]} 74. Kb6 {[%emt 0:00:24]} Rb7+ {[%emt 0:00:30]} 75. Kc5 {[%emt 0:01:28]} Rc7+ {[%emt 0:00:07]} 76. Kb6 {[%emt 0:00:29]} Rb7+ {[%emt 0:00:24]} 77. axb7 {[%emt 0:00:32]} 1/2-1/2

[Event "69th RUS-ch Women Superfinal 2019"]
[Site "Izhevsk"]
[Date "2019.08.21"]
[Round "10.4"]
[White "Shuvalova, Polina"]
[Black "Tomilova, Elena"]
[Result "1/2-1/2"]
[ECO "C54"]
[WhiteElo "2418"]
[BlackElo "2281"]
[Annotator "NA"]
[PlyCount "100"]
[EventDate "2019.08.10"]
[EventType "tourn"]
[EventCountry "RUS"]
[SourceTitle "playchess.com"]
[Source "ChessBase"]
[SourceQuality "1"]
[TimeControl "40/5400+30:1800+30"]

1. e4 {[%emt 0:00:00]} e5 {[%emt 0:00:00]} 2. Nf3 {[%emt 0:00:00]} Nc6 {[%emt 0:00:00]} 3. Bc4 {[%emt 0:00:00]} Bc5 {[%emt 0:00:18]} 4. c3 {[%emt 0:00:00]} Nf6 {[%emt 0:00:08]} 5. d3 {[%emt 0:00:05]} d6 {[%emt 0:01:33]} 6. O-O {[%emt 0:00:20]} O-O {[%emt 0:00:57]} 7. Nbd2 {[%emt 0:00:55]} a6 {[%emt 0:00:27]} 8. Bb3 {[%emt 0:00:14]} Ba7 {[%emt 0:00:32]} 9. Re1 {[%emt 0:02:22]} Ne7 {[%emt 0:00:56]} 10. Nf1 {[%emt 0:01:36] C54: Giuoco Piano: 4 c3 Nf6, main lines with 5 d4 and 5 d3} Ng6 {[%emt 0:00:28]} 11. Be3 {[%emt 0:06:34]} c6 $146 {[%emt 0:01:52]} ({Predecessor:} 11... Be6 12. Ng3 Bxe3 13. fxe3 c5 14. Bxe6 fxe6 15. d4 Qe7 16. Qb3 {0-1 (35) Das,A (2393)-Koneru,H (2603) Mumbai 2008}) 12. Bxa7 {[%emt 0:00:54]} Rxa7 {[%emt 0:00:02]} 13. d4 {[%emt 0:03:14]} Ra8 {[%emt 0:08:12]} 14. h3 {[%emt 0:03:14]} Qc7 {[%emt 0:04:23]} 15. Qd2 {[%emt 0:03:18]} Bd7 {[%emt 0:08:35]} 16. Rad1 {[%emt 0:01:19]} Rad8 {[%emt 0:01:28]} 17. Ng3 {[%emt 0:05:23]} h6 {[%emt 0:05:33]} 18. Qe3 {[%emt 0:05:41]} Rfe8 {[%emt 0:01:48]} 19. dxe5 {[%emt 0:02:46]} dxe5 {[%emt 0:04:22]} 20. Rd2 $11 {[%emt 0:04:23]} Be6 {[%emt 0:09:44]} 21. Rxd8 {[%emt 0:05:37]} Qxd8 {[%emt 0:00:52]} 22. Rd1 {[%emt 0:00:15]} Qa5 {[%emt 0:00:32]} 23. Bxe6 {[%emt 0:10:17]} Rxe6 {[%emt 0:06:19]} 24. Qa7 {[%emt 0:01:06]} Qc7 {[%emt 0:01:48]} 25. b4 {[%emt 0:02:42]} Re8 {[%emt 0:12:28]} 26. a4 {[%emt 0:03:50]} Nd7 {[%emt 0:08:41]} 27. Qe3 {[%emt 0:02:07]} c5 {[%emt 0:04:10]} 28. Nf5 {[%emt 0:05:37]} cxb4 {[%emt 0:02:05]} 29. cxb4 {[%emt 0:00:12]} Nf4 {[%emt 0:04:03]} 30. g3 {[%emt 0:02:00]} Ne6 {[%emt 0:00:53]} 31. Kg2 {[%emt 0:02:49]} Nf6 {[%emt 0:02:11]} 32. Rc1 {[%emt 0:01:39]} Qb8 {[%emt 0:02:25]} 33. a5 {[%emt 0:02:12]} Nd4 {[%emt 0:02:07]} 34. N3xd4 {[%emt 0:06:14]} exd4 {[%emt 0:00:04]} 35. Qxd4 {[%emt 0:00:18]} Rxe4 {[%emt 0:00:09]} 36. Qc3 {[%emt 0:05:41]} Kh7 {[%emt 0:01:00]} 37. Qd3 {[%emt 0:01:19]} g6 {[%emt 0:01:07]} 38. Nd6 {[%emt 0:01:03]} Qd8 {[%emt 0:01:21]} 39. Qb3 {[%emt 0:04:25]} Re7 {[%emt 0:00:35]} 40. Rd1 {[%emt 0:00:00]} Qc7 {[%emt 0:00:00]} 41. Qf3 {[%emt 0:04:10]} Kg7 {[%emt 0:05:04]} 42. Rd4 {[%emt 0:06:47]} Rd7 {[%emt 0:08:12]} 43. Qd1 {[%emt 0:06:07]} Qc6+ {[%emt 0:07:32]} 44. Kh2 {[%emt 0:01:17]} Re7 {[%emt 0:01:29]} 45. Rc4 {[%emt 0:02:24]} Qd7 {[%emt 0:02:09]} 46. Rd4 {[%emt 0:03:11]} Qc6 {[%emt 0:00:35]} 47. Rc4 {[%emt 0:00:06]} Qd7 {[%emt 0:00:04]} 48. Qd2 {[%emt 0:05:02]} Qe6 {[%emt 0:02:38]} 49. Rh4 {[%emt 0:00:49]} h5 {[%emt 0:00:19]} 50. Rd4 {[%emt 0:00:34]} Rd7 {[%emt 0:00:43]} 1/2-1/2

[Event "69th RUS-ch Women Superfinal 2019"]
[Site "Izhevsk"]
[Date "2019.08.21"]
[Round "10.5"]
[White "Kosteniuk, Alexandra"]
[Black "Shafigullina, Zarina"]
[Result "1-0"]
[ECO "B30"]
[WhiteElo "2517"]
[BlackElo "2246"]
[Annotator "ChessBase"]
[PlyCount "87"]
[EventDate "2019.08.10"]
[EventType "tourn"]
[EventCountry "RUS"]
[SourceTitle "playchess.com"]
[Source "ChessBase"]
[SourceQuality "1"]
[TimeControl "40/5400+30:1800+30"]

1. e4 {[%emt 0:00:00]} c5 {[%emt 0:00:00]} 2. Nf3 {[%emt 0:00:00]} Nc6 {[%emt 0:00:00]} 3. c3 {[%emt 0:00:00]} d5 {[%emt 0:00:00]} 4. exd5 {[%emt 0:00:00]} Qxd5 {[%emt 0:00:00]} 5. d4 {[%emt 0:00:01]} Bg4 {[%emt 0:01:24]} 6. Be2 {[%emt 0:00:29]} e6 {[%emt 0:01:05]} 7. h3 {[%emt 0:00:31]} Bh5 {[%emt 0:00:08]} 8. c4 {[%emt 0:00:18]} Qd6 {[%emt 0:02:16]} 9. d5 {[%emt 0:08:36]} Bxf3 {[%emt 0:04:35]} 10. Bxf3 {[%emt 0:00:07]} Nd4 {[%emt 0:00:11]} 11. O-O {[%emt 0:02:55]} O-O-O {[%emt 0:03:38]} 12. Nc3 {[%emt 0:03:55]} f5 {[%emt 0:23:41]} 13. dxe6 {[%emt 0:01:32]} Qxe6 {[%emt 0:02:16]} 14. Bd5 {[%emt 0:00:29]} Qf6 {[%emt 0:03:36]} 15. Be3 {[%emt 0:05:08]} Ne7 {[%emt 0:03:35]} 16. Qd2 {[%emt 0:12:33]} h6 {[%emt 0:07:43]} 17. b4 {[%emt 0:00:24]} Nec6 {[%emt 0:02:58]} 18. bxc5 {[%emt 0:07:59]} Bxc5 {[%emt 0:00:59]} 19. Rab1 {[%emt 0:01:35]} Rhe8 {[%emt 0:13:39]} 20. Rfd1 {[%emt 0:06:43]} b6 {[%emt 0:08:15]} 21. a4 {[%emt 0:04:15]} g5 {[%emt 0:08:49]} 22. a5 {[%emt 0:01:44]} f4 {[%emt 0:00:51]} 23. Bxd4 {[%emt 0:00:05]} Nxd4 {[%emt 0:02:42]} 24. axb6 {[%emt 0:01:40]} axb6 {[%emt 0:02:34]} 25. Qa2 {[%emt 0:00:35]} Re5 {[%emt 0:03:54]} 26. Ne4 {[%emt 0:01:31]} Rxe4 {[%emt 0:01:47]} 27. Bxe4 {[%emt 0:00:48]} Kd7 {[%emt 0:00:24]} 28. Re1 {[%emt 0:01:14]} Ke7 {[%emt 0:00:46]} 29. Bd5+ {[%emt 0:04:05]} Kf8 {[%emt 0:00:06]} 30. Rbd1 {[%emt 0:00:44]} h5 {[%emt 0:01:43]} 31. Qa7 {[%emt 0:07:54]} g4 {[%emt 0:00:06]} 32. Qh7 {[%emt 0:02:06]} Qg7 {[%emt 0:00:45]} 33. Qxg7+ {[%emt 0:02:13]} Kxg7 {[%emt 0:00:06]} 34. hxg4 {[%emt 0:00:12]} hxg4 {[%emt 0:00:06]} 35. Re4 {[%emt 0:00:09]} Nf5 {[%emt 0:02:15]} 36. Rxf4 {[%emt 0:00:14]} Nh6 {[%emt 0:00:18]} 37. Kf1 {[%emt 0:01:44]} Rh8 {[%emt 0:00:46]} 38. Be6 {[%emt 0:00:34]} Kg6 {[%emt 0:00:12]} 39. Bxg4 {[%emt 0:01:07]} Nxg4 {[%emt 0:00:49]} 40. Rxg4+ {[%emt 0:00:00]} Kf5 {[%emt 0:00:00]} 41. f3 {[%emt 0:00:15]} Ra8 {[%emt 0:01:09]} 42. Rd5+ {[%emt 0:00:53]} Kf6 {[%emt 0:00:07]} 43. Ke2 {[%emt 0:00:09]} Ra2+ {[%emt 0:00:19]} 44. Rd2 {[%emt 0:00:05]} 1-0

[Event "69th RUS-ch Women Superfinal 2019"]
[Site "Izhevsk"]
[Date "2019.08.21"]
[Round "10.6"]
[White "Pogonina, Natalija"]
[Black "Gunina, Valentina"]
[Result "1-0"]
[ECO "A45"]
[WhiteElo "2457"]
[BlackElo "2497"]
[Annotator "ChessBase"]
[PlyCount "147"]
[EventDate "2019.08.10"]
[EventType "tourn"]
[EventCountry "RUS"]
[SourceTitle "playchess.com"]
[Source "ChessBase"]
[SourceQuality "1"]
[TimeControl "40/5400+30:1800+30"]

1. d4 {[%emt 0:00:00]} Nf6 {[%emt 0:00:09]} 2. g3 {[%emt 0:00:00]} d5 {[%emt 0:01:46]} 3. Bg2 {[%emt 0:00:28]} e6 {[%emt 0:03:29]} 4. Nf3 {[%emt 0:00:25]} c5 {[%emt 0:00:53]} 5. O-O {[%emt 0:00:55]} Nc6 {[%emt 0:01:14]} 6. c4 {[%emt 0:01:09]} dxc4 {[%emt 0:11:27]} 7. dxc5 {[%emt 0:04:01]} Qxd1 {[%emt 0:02:13]} 8. Rxd1 {[%emt 0:00:06]} Bxc5 {[%emt 0:00:06]} 9. Nbd2 {[%emt 0:00:27]} c3 {[%emt 0:02:41]} 10. bxc3 {[%emt 0:00:05]} O-O {[%emt 0:01:03]} 11. Nb3 {[%emt 0:07:05]} Be7 {[%emt 0:00:58]} 12. Nfd4 {[%emt 0:00:26]} Ne5 {[%emt 0:33:25]} 13. Na5 {[%emt 0:24:10]} Nd5 {[%emt 0:02:11]} 14. Bd2 {[%emt 0:01:55]} Bd8 {[%emt 0:13:28]} 15. c4 {[%emt 0:22:38]} Bxa5 {[%emt 0:01:29]} 16. cxd5 {[%emt 0:00:08]} Bxd2 {[%emt 0:11:49]} 17. Rxd2 {[%emt 0:00:06]} Rd8 {[%emt 0:00:06]} 18. Nb3 {[%emt 0:02:01]} exd5 {[%emt 0:09:03]} 19. Bxd5 {[%emt 0:05:38]} Bf5 {[%emt 0:01:11]} 20. Rad1 {[%emt 0:04:37]} h5 {[%emt 0:00:33]} 21. f4 {[%emt 0:06:57]} Nc6 {[%emt 0:00:01]} 22. Nc5 {[%emt 0:00:10]} Rac8 {[%emt 0:01:09]} 23. Nxb7 {[%emt 0:04:51]} Rd7 {[%emt 0:00:01]} 24. Nc5 {[%emt 0:00:32]} Re7 {[%emt 0:00:08]} 25. Bf3 {[%emt 0:00:20]} g6 {[%emt 0:01:22]} 26. Rd6 {[%emt 0:09:12]} Nb4 {[%emt 0:00:13]} 27. Rd8+ {[%emt 0:00:07]} Rxd8 {[%emt 0:00:03]} 28. Rxd8+ {[%emt 0:00:05]} Kg7 {[%emt 0:00:03]} 29. a4 {[%emt 0:01:36]} Rc7 {[%emt 0:00:57]} 30. Nb7 {[%emt 0:01:54]} Rc1+ {[%emt 0:00:31]} 31. Kf2 {[%emt 0:00:13]} Nc2 {[%emt 0:01:09]} 32. Nd6 {[%emt 0:01:20]} Bh3 {[%emt 0:00:11]} 33. Bg2 {[%emt 0:00:23]} Bxg2 {[%emt 0:00:45]} 34. Kxg2 {[%emt 0:00:04]} Ne3+ {[%emt 0:00:10]} 35. Kf3 {[%emt 0:00:35]} Ng4 {[%emt 0:00:50]} 36. Rd7 {[%emt 0:02:08]} Rf1+ {[%emt 0:00:23]} 37. Kg2 {[%emt 0:00:03]} Rf2+ {[%emt 0:00:38]} 38. Kg1 {[%emt 0:00:04]} Rxe2 {[%emt 0:00:16]} 39. Nxf7 {[%emt 0:01:19]} Ne3 {[%emt 0:00:45]} 40. Ng5+ {[%emt 0:00:00]} Kf8 {[%emt 0:00:00]} 41. h3 {[%emt 0:06:19]} Rg2+ {[%emt 0:07:34]} 42. Kh1 {[%emt 0:00:29]} Ra2 {[%emt 0:00:49]} 43. Rxa7 {[%emt 0:03:12]} Nf1 {[%emt 0:11:11]} 44. g4 {[%emt 0:06:29]} hxg4 {[%emt 0:00:16]} 45. hxg4 {[%emt 0:00:05]} Ng3+ {[%emt 0:00:58]} 46. Kg1 {[%emt 0:00:04]} Ke8 {[%emt 0:00:36]} 47. a5 {[%emt 0:02:55]} Ne2+ {[%emt 0:01:20]} 48. Kf2 {[%emt 0:00:50]} Nxf4+ {[%emt 0:00:55]} 49. Kf3 {[%emt 0:00:45]} Nd5 {[%emt 0:05:30]} 50. Ne6 {[%emt 0:01:26]} Ne7 {[%emt 0:00:51]} 51. a6 {[%emt 0:06:27]} Nd5 {[%emt 0:05:55]} 52. Nc5 {[%emt 0:05:10]} Ra5 {[%emt 0:00:31]} 53. Nb7 {[%emt 0:01:58]} Ra3+ {[%emt 0:00:27]} 54. Ke4 {[%emt 0:00:12]} Nc7 {[%emt 0:00:41]} 55. Nd6+ {[%emt 0:01:32]} Kd8 {[%emt 0:00:29]} 56. Rxc7 {[%emt 0:00:44]} Rxa6 {[%emt 0:00:29]} 57. Nb5 {[%emt 0:00:28]} Ra4+ {[%emt 0:00:30]} 58. Kf3 {[%emt 0:00:20]} Rb4 {[%emt 0:00:31]} 59. Rc5 {[%emt 0:01:03]} Ke7 {[%emt 0:00:19]} 60. Nc3 {[%emt 0:00:40]} Kd6 {[%emt 0:00:44]} 61. Rb5 {[%emt 0:00:19]} Rc4 {[%emt 0:00:27]} 62. Ne4+ {[%emt 0:00:07]} Ke6 {[%emt 0:00:04]} 63. Kf4 {[%emt 0:00:18]} Ra4 {[%emt 0:00:26]} 64. Re5+ {[%emt 0:01:02]} Kf7 {[%emt 0:00:01]} 65. Kg5 {[%emt 0:00:13]} Rd4 {[%emt 0:00:20]} 66. Ng3 {[%emt 0:00:45]} Rd3 {[%emt 0:00:36]} 67. Ne2 {[%emt 0:00:08]} Rd6 {[%emt 0:00:34]} 68. Nf4 {[%emt 0:00:05]} Ra6 {[%emt 0:00:23]} 69. Rb5 {[%emt 0:00:07]} Kg7 {[%emt 0:00:20]} 70. Rb7+ {[%emt 0:00:10]} Kg8 {[%emt 0:00:01]} 71. Re7 {[%emt 0:01:00]} Ra4 {[%emt 0:00:46]} 72. Kxg6 {[%emt 0:00:50]} Kf8 {[%emt 0:01:09]} 73. Rf7+ {[%emt 0:00:04]} Kg8 {[%emt 0:00:06]} 74. g5 {[%emt 0:00:55]} 1-0

[Event "69th RUS-ch Women Superfinal 2019"]
[Site "Izhevsk"]
[Date "2019.08.22"]
[Round "11.1"]
[White "Gunina, Valentina"]
[Black "Kashlinskaya, Alina"]
[Result "1-0"]
[ECO "C29"]
[WhiteElo "2497"]
[BlackElo "2492"]
[Annotator "ChessBase"]
[PlyCount "69"]
[EventDate "2019.08.10"]
[EventType "tourn"]
[EventCountry "RUS"]
[SourceTitle "playchess.com"]
[Source "ChessBase"]
[SourceQuality "1"]
[TimeControl "40/5400+30:1800+30"]

1. e4 {[%emt 0:00:00]} e5 {[%emt 0:00:00]} 2. Nc3 {[%emt 0:00:00]} Nf6 {[%emt 0:00:00]} 3. f4 {[%emt 0:00:00]} d5 {[%emt 0:05:47]} 4. fxe5 {[%emt 0:00:21]} Nxe4 {[%emt 0:00:15]} 5. Nf3 {[%emt 0:00:11]} Be7 {[%emt 0:06:04]} 6. Qe2 {[%emt 0:01:07]} Nxc3 {[%emt 0:03:56]} 7. dxc3 {[%emt 0:00:06]} c5 {[%emt 0:02:23]} 8. Bf4 {[%emt 0:00:10]} Nc6 {[%emt 0:00:27]} 9. O-O-O {[%emt 0:00:10]} Be6 {[%emt 0:04:15]} 10. h4 {[%emt 0:01:24]} h6 {[%emt 0:02:22]} 11. c4 {[%emt 0:00:34]} d4 {[%emt 0:01:52]} 12. Nd2 {[%emt 0:00:31]} Qa5 {[%emt 0:05:38]} 13. a3 {[%emt 0:04:38]} O-O-O {[%emt 0:03:12]} 14. Qf2 {[%emt 0:10:36]} f6 {[%emt 0:13:28]} 15. exf6 {[%emt 0:01:22]} Bxf6 {[%emt 0:02:45]} 16. Re1 {[%emt 0:04:41]} Rhe8 {[%emt 0:07:15]} 17. Bd3 {[%emt 0:01:03]} Bg4 {[%emt 0:03:21]} 18. Bh2 {[%emt 0:03:01]} Re3 {[%emt 0:00:42]} 19. Nb3 {[%emt 0:05:58]} Qb6 {[%emt 0:05:24]} 20. Bf5+ {[%emt 0:02:11]} Bxf5 {[%emt 0:00:38]} 21. Qxf5+ {[%emt 0:00:05]} Rd7 {[%emt 0:00:11]} 22. Nxc5 {[%emt 0:00:32]} Qd8 {[%emt 0:00:57]} 23. Bf4 {[%emt 0:08:33]} Rxe1+ {[%emt 0:01:13]} 24. Rxe1 {[%emt 0:00:02]} Bxh4 {[%emt 0:00:12]} 25. Re6 {[%emt 0:09:56]} Be7 {[%emt 0:11:12]} 26. Nxd7 {[%emt 0:02:30]} Qxd7 {[%emt 0:00:07]} 27. Qd5 {[%emt 0:00:54]} Qe8 {[%emt 0:00:54]} 28. b4 {[%emt 0:03:02]} Nd8 {[%emt 0:02:31]} 29. Re4 {[%emt 0:01:13]} Nc6 {[%emt 0:00:29]} 30. b5 {[%emt 0:01:43]} Bxa3+ {[%emt 0:00:37]} 31. Kb1 {[%emt 0:00:33]} Qf8 {[%emt 0:00:45]} 32. c5 {[%emt 0:00:16]} Nd8 {[%emt 0:01:01]} 33. Rxd4 {[%emt 0:00:43]} Qe8 {[%emt 0:00:21]} 34. Ka2 {[%emt 0:01:27]} Ne6 {[%emt 0:01:36]} 35. Re4 {[%emt 0:00:34]} 1-0